bitfinex/quotes_ETHUSD_20240716
["timestamp","ask_amount","ask_price","bid_price","bid_amount"]
[1721162954329,1.49448125,3461.2,3461.0,0.1493552]
[1721162954530,1.1954594,3461.1,3461.0,0.1493552]
[1721162954858,4.1954594,3461.1,3461.0,0.1493552]
[1721162955059,0.89665291,3461.2,3461.0,0.1493552]
[1721162955362,1.49448125,3461.5,3461.0,0.1493552]
[1721162955363,0.89665291,3461.4,3461.0,1.53513072]
[1721162955556,0.89665291,3461.4,3461.2,1.023]
[1721162955921,0.89665291,3461.6,3461.2,1.023]
[1721162956118,0.89665291,3461.6,3461.4,1.023]
[1721162957122,0.89665291,3461.6,3461.0,3.40138072]
[1721162957420,0.89665291,3461.6,3461.1,0.87462707]
[1721162957625,0.89665291,3461.6,3461.3,1.023]
[1721162958133,0.89665291,3461.7,3461.6,2.4762]
[1721162958339,0.89665291,3461.8,3461.6,2.4762]
[1721162958563,0.89665291,3461.9,3461.7,1.023]
[1721162960145,0.89665291,3461.9,3461.7,0.973]
[1721162960698,0.89665291,3461.9,3461.6,2.4762]
[1721162963056,0.89665291,3461.9,3461.5,1.023]
[1721162966431,0.89665291,3461.9,3461.2,2.2813]
[1721162966725,0.89665291,3461.6,3461.2,1.023]
[1721162967224,0.89665291,3461.5,3461.2,1.023]
[1721162967424,0.89665291,3461.4,3461.0,0.1493552]
[1721162967632,0.89665291,3461.3,3461.0,0.1493552]
[1721162969735,0.89665291,3461.3,3461.1,1.023]
[1721162975227,0.89665291,3461.4,3461.1,1.023]
[1721162975418,0.89665291,3461.4,3461.3,1.023]
[1721162975620,0.89665291,3461.5,3461.3,3.504]
[1721162975824,3.0,3461.6,3461.3,3.504]
[1721162975825,0.89665291,3461.6,3461.4,1.023]
[1721162977145,0.89665291,3461.8,3461.4,1.662325]
[1721162977363,0.89665291,3461.9,3461.7,1.023]
[1721162977635,0.89665291,3462.0,3461.8,1.023]
[1721162978935,0.89665291,3462.0,3461.3,2.481]
[1721162979120,0.89665291,3462.0,3461.8,1.023]
[1721162980801,0.89665291,3462.0,3461.3,2.481]
[1721162981017,0.89665291,3462.0,3461.5,1.023]
[1721162981638,0.89665291,3461.9,3461.5,1.023]
[1721162982140,0.89665291,3462.0,3461.5,1.023]
[1721162983368,0.89665291,3462.1,3461.5,1.023]
[1721162984166,0.89665291,3462.1,3461.7,1.023]
[1721162985769,0.89665291,3462.0,3461.7,1.023]
[1721162989870,0.89665291,3462.0,3461.5,1.023]
[1721162992069,0.89665291,3462.0,3461.0,0.1493552]
[1721162992070,0.89665291,3461.8,3461.2,1.023]
[1721162992282,0.89665291,3461.7,3461.0,1.1723552]
[1721162992478,0.89665291,3461.5,3461.0,1.1723552]
[1721162993277,0.89665291,3461.4,3461.0,1.1723552]
[1721162994073,0.89665291,3461.3,3461.0,1.1723552]
[1721162994275,0.89665291,3461.2,3461.0,1.1723552]
[1721162996652,0.89665291,3461.1,3461.0,1.1723552]
[1721162997988,1.1954594,3461.2,3461.0,3.4929552]
[1721162997989,0.89665291,3461.2,3461.0,3.4929552]
[1721162998170,0.89665291,3461.2,3461.0,4.13120872]
[1721162998399,6.78565291,3461.4,3461.0,4.13120872]
[1721162998567,6.78565291,3461.4,3461.3,1.023]
[1721162998768,5.889,3461.4,3461.3,1.023]
[1721162999409,7.0844594,3461.4,3461.3,1.023]
[1721163000912,4.1954594,3461.4,3461.3,1.023]
[1721163001112,1.1954594,3461.5,3461.4,2.3299]
[1721163001274,0.89996714,3461.6,3461.4,3.3529]
[1721163001480,0.89996714,3461.6,3461.5,1.023]
[1721163001818,0.89996714,3461.7,3461.5,1.647198]
[1721163001971,1.1954594,3461.8,3461.5,1.647198]
[1721163001972,0.89996714,3461.6,3461.5,0.624198]
[1721163002174,0.89996714,3461.6,3461.5,1.647198]
[1721163002467,1.1954594,3461.7,3461.5,1.023]
[1721163005386,1.1954594,3461.6,3461.5,1.023]
[1721163006302,1.1954594,3461.6,3461.2,2.3825]
[1721163006483,1.1954594,3461.6,3461.5,1.023]
[1721163010420,1.1954594,3461.7,3461.5,1.023]
[1721163012003,1.1954594,3461.7,3461.5,1.36355]
[1721163012323,0.89947678,3461.6,3461.5,1.36355]
[1721163013016,1.1954594,3461.7,3461.5,1.36355]
[1721163013236,1.1954594,3461.7,3461.5,1.023]
[1721163015037,4.1954594,3461.7,3461.5,1.023]
[1721163020417,1.1954594,3461.6,3461.5,1.023]
[1721163022059,1.1954594,3461.6,3461.0,0.1493552]
[1721163022060,2.345,3461.6,3461.0,0.1493552]
[1721163022346,1.79810043,3461.4,3461.0,0.1493552]
[1721163022512,1.79810043,3461.3,3461.0,0.1493552]
[1721163023237,1.79810043,3461.2,3461.0,0.1493552]
[1721163023746,4.79810043,3461.2,3461.0,0.1493552]
[1721163023959,1.79810043,3461.2,3461.0,0.1493552]
[1721163025517,1.79810043,3461.3,3461.0,0.1493552]
[1721163026155,2.3505,3461.1,3461.0,0.1493552]
[1721163026317,9.152,3461.1,3461.0,0.1493552]
[1721163026641,9.152,3461.1,3459.2,2.89082]
[1721163026642,2.89044,3459.7,3459.0,2.3439]
[1721163026859,2.89044,3459.7,3459.1,1.023]
[1721163027066,2.89059,3459.5,3459.1,1.023]
[1721163027364,2.89059,3459.5,3458.6,2.3439]
[1721163027365,2.89076,3459.3,3458.6,5.23523]
[1721163027660,5.89051,3459.6,3459.1,1.023]
[1721163027861,3.89758604,3459.7,3459.4,3.4303]
[1721163028061,0.89758604,3460.0,3459.6,1.023]
[1721163028273,0.89758604,3460.0,3459.0,2.4073]
[1721163028274,2.89027,3459.9,3459.0,2.4073]
[1721163028436,3.0,3460.0,3459.5,1.023]
[1721163028437,2.89034,3459.8,3459.5,1.023]
[1721163028764,3.0,3460.0,3459.7,1.023]
[1721163028930,3.0,3460.0,3459.4,2.89064]
[1721163028931,0.89758604,3460.1,3459.4,2.89064]
[1721163029119,3.0,3460.3,3459.9,1.023]
[1721163029325,3.0,3460.3,3459.6,5.2946]
[1721163029552,2.88984,3460.4,3460.0,1.023]
[1721163029721,3.0,3460.3,3460.0,1.023]
[1721163030057,5.88996,3460.3,3460.0,1.023]
[1721163030218,5.88996,3460.3,3459.6,2.4041]
[1721163030864,3.0,3460.3,3459.6,3.222644]
[1721163031032,3.89758604,3460.5,3459.7,2.8904]
[1721163031233,3.89758604,3460.5,3459.6,2.4041]
[1721163031234,0.89758604,3460.4,3459.6,2.4041]
[1721163031432,3.89758604,3460.5,3459.6,2.4041]
[1721163031650,3.0,3460.4,3459.6,2.4041]
[1721163031825,0.89758604,3460.5,3459.6,2.4041]
[1721163031826,2.88998,3460.3,3459.6,2.4041]
[1721163032021,0.89758604,3460.5,3459.6,2.4041]
[1721163032022,0.89758604,3460.4,3459.6,2.4041]
[1721163032241,5.88989,3460.4,3459.6,2.90326719]
[1721163032440,5.88989,3460.4,3459.6,5.79376719]
[1721163033974,1.49341874,3460.8,3459.6,5.79376719]
[1721163033975,3.0,3460.8,3460.3,2.88986]
[1721163034176,6.78692604,3461.0,3460.2,2.4637]
[1721163034342,5.88943,3460.9,3460.2,2.4637]
[1721163034543,2.88952,3460.8,3460.2,2.4637]
[1721163034750,3.0,3460.7,3460.2,2.4637]
[1721163036234,5.88959,3460.7,3459.8,2.4721]
[1721163036475,3.0,3460.6,3459.8,5.36241]
[1721163036773,3.0,3460.6,3459.9,2.89024]
[1721163037474,3.0,3460.6,3459.8,5.73683129]
[1721163037475,3.0,3460.6,3460.0,2.89016]
[1721163037838,3.0,3460.6,3459.8,2.84652129]
[1721163038038,0.89758604,3460.9,3460.5,5.25345]
[1721163038785,3.0,3461.1,3460.5,5.25345]
[1721163038940,3.89758604,3461.1,3460.5,5.25345]
[1721163039343,6.78684604,3461.1,3460.2,2.89]
[1721163039550,5.88926,3461.1,3460.0,2.3637]
[1721163039752,5.88926,3461.1,3460.1,0.32881213]
[1721163039966,5.88926,3461.1,3460.0,2.3637]
[1721163040170,0.89758604,3461.0,3460.0,2.3637]
[1721163040370,2.88949,3460.9,3460.1,2.89003]
[1721163040578,5.88951,3460.8,3460.1,2.89003]
[1721163041287,5.88951,3460.8,3460.0,2.3637]
[1721163041288,3.0,3460.8,3460.0,2.3637]
[1721163041494,3.64258139,3461.2,3459.5,5.29234]
[1721163041495,2.88999,3460.3,3459.5,5.29234]
[1721163042355,2.88999,3460.3,3459.5,6.356446]
[1721163042869,2.88999,3460.3,3459.6,2.89049]
[1721163046277,5.77965,3460.5,3459.6,2.89049]
[1721163046459,3.0,3460.4,3459.6,2.89049]
[1721163047585,2.88993,3460.3,3459.6,2.89049]
[1721163047817,2.88993,3460.3,3459.6,4.0609956]
[1721163048089,2.88993,3460.3,3459.6,2.89049]
[1721163049775,2.88993,3460.3,3459.5,2.4018]
[1721163049776,2.89001,3460.2,3459.5,5.29237]
[1721163050471,5.89009,3460.1,3459.0,2.3898]
[1721163050676,2.89043,3459.7,3459.0,2.3898]
[1721163051086,0.89758604,3460.0,3458.6,2.3898]
[1721163051310,0.89758604,3460.0,3458.7,2.89125]
[1721163051311,2.89073,3459.4,3458.7,2.89125]
[1721163051473,3.0,3459.3,3458.8,2.89117]
[1721163051678,3.0,3459.3,3458.7,3.708492]
[1721163051907,3.0,3459.4,3458.7,3.708492]
[1721163052278,3.78802604,3459.7,3458.8,2.89116]
[1721163052501,3.0,3459.6,3458.8,5.34916]
[1721163052723,5.89035,3459.8,3459.1,2.89092]
[1721163053276,5.89035,3459.8,3458.9,2.89108]
[1721163053578,2.89042,3459.7,3459.0,2.891]
[1721163053779,3.0,3459.6,3459.0,2.891]
[1721163054918,3.0,3459.6,3459.1,2.89092]
[1721163055111,3.0,3459.7,3459.1,2.89092]
[1721163055413,5.89042,3459.7,3458.9,2.89102]
[1721163055590,5.89042,3459.7,3459.0,2.891]
[1721163055970,5.89042,3459.7,3459.1,2.89091]
[1721163056215,5.89042,3459.7,3459.1,3.714901]
[1721163056216,2.5,3459.7,3459.1,3.714901]
[1721163056387,2.8903,3459.9,3459.1,3.714901]
[1721163057201,2.8903,3459.9,3459.1,0.823991]
[1721163057202,2.89034,3459.8,3459.1,0.823991]
[1721163057418,2.89034,3459.8,3459.0,2.891]
[1721163057907,2.89034,3459.8,3459.0,2.89093]
[1721163058111,2.89034,3459.8,3459.1,2.89091]
[1721163058274,3.0,3459.7,3459.1,2.89091]
[1721163058674,3.0,3459.7,3459.0,2.89093]
[1721163058910,5.89042,3459.7,3459.0,2.89093]
[1721163059786,5.89042,3459.7,3458.8,2.89116]
[1721163060203,5.89042,3459.7,3458.8,2.89111]
[1721163060407,2.89059,3459.5,3458.8,3.708331]
[1721163060730,3.0,3459.4,3458.9,2.89107]
[1721163060884,3.0,3459.7,3459.1,2.89087]
[1721163061087,2.89028,3459.9,3459.1,2.89087]
[1721163061088,5.89039,3459.8,3459.1,2.89087]
[1721163061289,5.89039,3459.8,3458.9,2.89101]
[1721163061586,5.89039,3459.8,3459.1,2.89087]
[1721163062903,5.89039,3459.8,3459.2,2.2562]
[1721163063313,5.89039,3459.8,3459.1,2.89087]
[1721163063993,3.0,3459.8,3459.1,2.89087]
[1721163064193,3.0,3459.9,3459.1,2.89087]
[1721163065327,3.0,3459.9,3459.1,3.7764061]
[1721163065530,6.78788604,3459.9,3459.1,3.7764061]
[1721163065895,6.78788604,3459.9,3459.2,2.89084]
[1721163066094,2.89034,3459.8,3459.2,2.89084]
[1721163066290,3.0,3459.7,3459.2,2.89084]
[1721163066921,0.89758604,3459.9,3459.8,2.89034]
[1721163067097,1.79103492,3460.6,3460.2,5.15435]
[1721163067098,0.89758604,3460.6,3460.2,5.15435]
[1721163067297,0.89758604,3460.8,3460.2,5.15435]
[1721163067704,2.88943,3460.9,3460.5,2.88967]
[1721163067705,0.89758604,3460.9,3460.5,2.88967]
[1721163067906,0.89758604,3461.0,3460.5,3.405077]
[1721163068120,0.89758604,3461.0,3460.3,2.88989]
[1721163068325,2.88952,3460.8,3460.0,2.89016]
[1721163068525,2.88952,3460.8,3459.8,5.15189]
[1721163068526,3.78710604,3460.8,3459.8,5.15189]
[1721163068736,0.89758604,3460.6,3459.6,2.89048]
[1721163068907,0.89758604,3460.5,3459.6,2.89048]
[1721163069099,2.88992,3460.3,3459.7,1.547105]
[1721163070422,0.89758604,3460.4,3459.7,4.437525]
[1721163071117,0.89758604,3460.4,3460.0,2.89015]
[1721163071901,0.89758604,3460.4,3459.9,2.89017]
[1721163072639,0.89758604,3460.4,3460.0,2.89016]
[1721163072808,0.89758604,3460.4,3460.1,0.578033]
[1721163073743,0.89758604,3460.4,3460.1,3.008833]
[1721163074036,0.89758604,3460.4,3460.1,5.898903]
[1721163075048,0.89758604,3460.4,3460.1,3.008833]
[1721163076438,0.89758604,3460.4,3460.1,5.898913]
[1721163076597,0.89758604,3460.5,3460.2,0.8789083]
[1721163077243,0.89758604,3460.4,3460.1,3.008833]
[1721163077454,0.89758604,3460.4,3460.1,5.898893]
[1721163078509,1.19678139,3460.6,3460.1,5.898893]
[1721163078510,0.89758604,3460.5,3460.1,5.898893]
[1721163079417,0.89758604,3460.5,3460.2,2.88993]
[1721163079745,1.49511574,3460.8,3460.1,3.008833]
[1721163079746,0.89758604,3460.8,3460.5,2.88968]
[1721163079930,0.89758604,3460.8,3460.6,0.577954]
[1721163080132,4.19678139,3461.0,3460.3,5.7797]
[1721163080133,0.89758604,3460.7,3460.3,5.7797]
[1721163080336,0.89758604,3460.7,3460.4,2.88982]
[1721163080534,0.89758604,3460.8,3460.4,2.88982]
[1721163080763,0.89758604,3460.8,3460.2,2.88993]
[1721163080937,0.89758604,3460.8,3460.1,3.008833]
[1721163081137,4.08620139,3460.9,3460.1,3.008833]
[1721163081138,0.89758604,3460.6,3460.1,3.008833]
[1721163081465,0.89758604,3460.4,3460.1,0.578033]
[1721163081622,0.89758604,3460.5,3460.1,0.578033]
[1721163082245,0.89758604,3460.4,3460.1,0.578033]
[1721163082720,2.89009,3460.1,3459.7,2.3604]
[1721163082925,3.78767604,3460.1,3459.4,10.26066]
[1721163083230,3.78775604,3460.0,3459.3,5.38955]
[1721163083480,3.78776604,3460.0,3459.4,2.89065]
[1721163085661,4.08678139,3460.2,3459.4,2.89065]
[1721163085662,0.89758604,3459.9,3459.4,2.89065]
[1721163085867,0.89758604,3460.0,3459.5,0.828028]
[1721163087160,0.89758604,3459.9,3459.5,0.828028]
[1721163088330,0.89758604,3459.9,3459.3,5.3895]
[1721163089529,0.89758604,3459.9,3459.4,2.89066]
[1721163090228,0.89758604,3459.9,3459.3,5.3895]
[1721163090229,2.89034,3459.8,3458.9,2.3035]
[1721163090539,0.89758604,3459.6,3459.0,2.891]
[1721163090741,0.89758604,3459.5,3459.0,3.945367]
[1721163091339,0.89758604,3459.4,3459.0,3.945367]
[1721163091652,0.89758604,3459.4,3458.9,5.19458]
[1721163091859,0.89758604,3459.4,3458.9,2.3035]
[1721163092071,0.89758604,3459.4,3459.0,2.89099]
[1721163092590,0.89758604,3459.5,3459.1,2.89092]
[1721163092758,0.89758604,3459.5,3459.2,3.699361]
[1721163092964,0.89758604,3459.7,3459.2,3.699361]
[1721163093172,0.89758604,3459.6,3459.0,2.89094]
[1721163093378,0.89758604,3459.6,3459.1,2.89091]
[1721163093692,0.89758604,3459.5,3459.1,2.89091]
[1721163093897,0.89758604,3459.6,3459.1,3.945259]
[1721163094344,0.89758604,3459.6,3459.1,1.054349]
[1721163094553,0.89758604,3459.5,3459.1,1.054349]
[1721163094766,0.89758604,3459.6,3459.1,1.054349]
[1721163095572,0.89758604,3459.6,3459.2,0.9139889]
[1721163098175,0.89758604,3459.7,3459.3,2.89075]
[1721163098348,0.89758604,3459.8,3459.3,2.89075]
[1721163099289,0.89758604,3459.7,3459.3,2.89075]
[1721163099488,0.89758604,3459.7,3459.4,0.91536289]
[1721163099693,0.89758604,3459.7,3459.3,2.89075]
[1721163099921,0.89758604,3459.6,3459.3,2.89075]
[1721163100205,0.89758604,3459.6,3459.2,0.9139889]
[1721163100421,0.89758604,3459.5,3459.1,2.89085]
[1721163103107,0.89758604,3459.5,3458.9,2.89109]
[1721163103321,0.89758604,3459.4,3458.9,3.69594]
[1721163103771,0.89758604,3459.4,3458.9,0.80485]
[1721163104313,0.89758604,3459.3,3458.9,0.80485]
[1721163106412,0.89758604,3459.2,3458.6,2.89131]
[1721163106612,0.89758604,3459.2,3458.4,5.3495]
[1721163106822,0.89758604,3459.2,3458.4,2.8915]
[1721163106823,3.78850604,3459.1,3458.4,2.8915]
[1721163107128,0.89758604,3459.0,3458.5,1.541374]
[1721163107302,2.89112,3458.9,3458.2,12.52226]
[1721163107487,2.89112,3458.9,3458.2,5.15226]
[1721163107488,3.78870604,3458.9,3458.2,5.15226]
[1721163107692,0.89758604,3458.8,3458.2,5.15226]
[1721163107874,3.78870604,3458.9,3458.3,0.515226]
[1721163108078,0.89758604,3458.8,3458.3,0.515226]
[1721163108541,3.78876604,3458.8,3458.0,2.8918]
[1721163108730,2.89127,3458.7,3457.9,2.89689]
[1721163108882,3.78885604,3458.7,3457.9,2.89689]
[1721163109081,3.78885604,3458.7,3457.9,0.005]
[1721163109082,2.89153,3458.4,3457.9,0.005]
[1721163109439,6.68126604,3458.0,3457.9,0.005]
[1721163109732,2.89184,3458.0,3457.9,0.005]
[1721163109935,5.89184,3458.0,3457.9,0.005]
[1721163110134,6.78897654,3458.0,3457.9,0.005]
[1721163110689,5.89184,3458.0,3457.9,0.005]
[1721163110889,6.78899238,3458.0,3457.9,0.005]
[1721163111140,3.0,3458.0,3457.9,0.005]
[1721163111430,2.89173,3458.2,3457.9,0.005]
[1721163111588,3.0,3458.1,3457.9,0.005]
[1721163111991,0.89715238,3458.3,3457.9,0.005]
[1721163112207,0.89715238,3458.9,3458.2,2.89167]
[1721163112510,0.89715238,3458.9,3458.3,0.816579]
[1721163112511,3.0,3458.8,3458.3,0.816579]
[1721163112706,6.78825238,3458.9,3458.3,0.816579]
[1721163112908,5.8911,3458.9,3458.3,0.816579]
[1721163113109,5.8911,3458.9,3458.1,2.3823]
[1721163113310,2.89127,3458.7,3458.1,2.3823]
[1721163114137,5.8911,3458.9,3458.1,2.3823]
[1721163114540,3.0,3458.9,3458.1,5.27406]
[1721163114838,5.89101,3459.0,3458.1,5.27406]
[1721163115050,3.0,3459.0,3458.3,2.89155]
[1721163115333,0.89715238,3459.3,3458.8,2.89111]
[1721163115548,0.89715238,3459.6,3458.8,2.89111]
[1721163115697,2.89053,3459.6,3458.8,2.89111]
[1721163115896,3.78768238,3459.6,3458.8,2.89111]
[1721163116104,3.78768238,3459.6,3458.9,2.89108]
[1721163116416,3.78763238,3459.7,3458.9,2.89108]
[1721163116836,0.89715238,3459.7,3458.9,2.89108]
[1721163117005,0.89715238,3459.7,3459.0,2.891]
[1721163117921,5.89034,3459.8,3459.0,2.891]
[1721163118116,3.0,3459.8,3459.2,2.89083]
[1721163118319,3.0,3460.0,3459.2,2.89083]
[1721163118504,6.78734238,3460.0,3459.2,2.89083]
[1721163118732,3.89715238,3460.0,3459.2,2.89083]
[1721163119746,6.78734238,3460.0,3459.2,2.89083]
[1721163120354,6.78734238,3460.0,3459.0,1.07208428]
[1721163120523,0.89715238,3459.9,3459.2,2.89083]
[1721163120913,0.89715238,3459.9,3459.0,2.891]
[1721163120914,3.78741238,3459.9,3459.0,2.891]
[1721163121114,3.0,3459.8,3459.1,2.89092]
[1721163121447,3.0,3459.8,3459.2,2.89078]
[1721163122311,5.89035,3459.8,3459.0,2.89099]
[1721163122644,5.89035,3459.8,3459.1,3.25305535]
[1721163122833,3.0,3459.8,3459.1,3.25305535]
[1721163123039,6.78741238,3459.9,3459.1,3.25305535]
[1721163124845,0.89715238,3459.9,3459.3,2.89075]
[1721163125051,0.89715238,3460.1,3459.5,2.89056]
[1721163125342,3.78716238,3460.2,3459.5,2.89056]
[1721163125561,0.89715238,3460.1,3459.5,2.89056]
[1721163125711,3.78716238,3460.2,3459.5,2.89056]
[1721163125909,3.78716238,3460.2,3459.5,3.64410186]
[1721163126333,3.78716238,3460.2,3459.5,2.89056]
[1721163127167,6.33895238,3460.1,3458.6,2.89129]
[1721163127366,0.89715238,3459.8,3458.9,2.89105]
[1721163127525,0.89715238,3459.8,3459.1,5.30989]
[1721163127526,3.78749238,3459.8,3459.1,5.30989]
[1721163127871,3.78749238,3459.8,3459.2,2.89083]
[1721163127872,0.89715238,3459.8,3459.2,2.89083]
[1721163129090,2.89059,3459.5,3458.7,2.3554]
[1721163129250,2.89081,3459.3,3458.5,5.78272]
[1721163129451,3.78796238,3459.3,3458.5,3.426296]
[1721163129666,3.78796238,3459.3,3458.7,2.89125]
[1721163130149,2.89081,3459.3,3458.7,2.89125]
[1721163130356,0.89715238,3459.4,3458.9,2.89103]
[1721163130664,4.38550021,3459.7,3458.9,2.89103]
[1721163130665,3.89715238,3459.6,3458.9,2.89103]
[1721163130886,6.78766238,3459.6,3458.9,2.89103]
[1721163131080,6.78766238,3459.6,3458.7,5.34925]
[1721163131081,3.78776238,3459.5,3458.7,5.34925]
[1721163131260,3.78776238,3459.5,3458.8,2.89112]
[1721163131261,0.89715238,3459.4,3458.8,2.89112]
[1721163132397,2.89077,3459.3,3458.5,3.426316]
[1721163132568,2.89077,3459.3,3458.5,3.426296]
[1721163132752,2.89077,3459.3,3458.7,2.89125]
[1721163132753,0.89715238,3459.3,3458.7,2.89125]
[1721163132953,0.89715238,3459.4,3458.8,5.37201]
[1721163133154,0.89715238,3459.5,3459.1,5.34886]
[1721163133387,1.49457334,3459.8,3459.1,5.34886]
[1721163133388,3.89715238,3459.7,3459.1,5.34886]
[1721163133605,0.89715238,3459.7,3459.1,5.34886]
[1721163133898,0.89715238,3460.1,3459.7,2.89042]
[1721163134399,0.89715238,3460.0,3459.7,2.8904]
[1721163134558,0.89715238,3460.1,3459.7,2.8904]
[1721163135499,0.89715238,3460.1,3459.8,2.89033]
[1721163135657,3.0,3460.3,3459.8,2.89033]
[1721163135658,3.89715238,3460.3,3459.8,2.89033]
[1721163135860,0.89715238,3460.3,3459.8,2.89033]
[1721163136390,4.19678139,3460.5,3459.8,2.89033]
[1721163136391,0.89715238,3460.4,3459.8,2.89033]
[1721163136993,0.89715238,3460.4,3459.9,2.89024]
[1721163138296,0.89715238,3460.4,3459.8,2.89033]
[1721163138462,0.89715238,3460.4,3459.9,2.89024]
[1721163138652,0.89715238,3460.4,3460.0,2.89017]
[1721163138995,3.0,3460.5,3459.9,0.578057]
[1721163138996,0.89715238,3460.5,3460.1,2.89002]
[1721163139192,0.89715238,3460.5,3459.9,3.036057]
[1721163139193,0.89715238,3460.5,3460.2,2.88993]
[1721163139378,0.89715238,3460.6,3460.2,2.88993]
[1721163141282,0.89715238,3460.9,3460.3,2.88991]
[1721163141455,0.89715238,3460.9,3460.2,3.715447]
[1721163141657,1.19678139,3461.1,3460.2,3.715447]
[1721163141658,0.89715238,3461.1,3460.6,2.88959]
[1721163141861,0.89715238,3461.3,3460.7,2.88958]
[1721163142275,3.78615238,3461.4,3460.7,2.88958]
[1721163142470,0.89715238,3461.2,3460.7,2.88958]
[1721163142993,1.49521668,3461.5,3460.7,2.88958]
[1721163142994,0.89715238,3461.3,3460.8,2.88942]
[1721163143295,0.89715238,3461.4,3460.8,2.88942]
[1721163143501,3.78616238,3461.4,3460.7,2.88958]
[1721163143995,0.89715238,3461.4,3460.8,2.88949]
[1721163144297,0.89715238,3461.5,3460.5,5.36354]
[1721163144499,3.78624238,3461.3,3460.5,5.36354]
[1721163144702,3.0,3461.2,3460.6,2.88962]
[1721163146209,6.78615238,3461.4,3460.6,2.88962]
[1721163146399,5.889,3461.4,3460.6,3.714943]
[1721163146562,5.889,3461.4,3460.7,2.88957]
[1721163146905,5.889,3461.4,3460.6,3.714943]
[1721163146906,3.0,3461.4,3460.8,2.88944]
[1721163147077,3.89715238,3461.5,3460.8,2.88944]
[1721163147257,6.78609238,3461.5,3460.8,2.88944]
[1721163147468,5.88894,3461.5,3460.8,2.88944]
[1721163152585,2.889,3461.4,3460.6,3.714923]
[1721163152784,3.0,3461.3,3460.7,2.88958]
[1721163153940,3.0,3461.3,3460.7,5.77909]
[1721163154231,3.0,3461.3,3460.8,2.88949]
[1721163155000,3.0,3461.4,3460.8,2.88949]
[1721163155421,5.88901,3461.4,3460.6,2.88959]
[1721163155919,5.88901,3461.4,3460.8,2.88949]
[1721163156295,2.88913,3461.3,3460.5,5.36353]
[1721163156493,5.88917,3461.2,3460.5,2.88973]
[1721163156933,2.88925,3461.1,3460.3,2.88987]
[1721163157110,2.88934,3461.0,3460.2,2.4608]
[1721163157307,2.8896,3460.7,3459.9,2.89018]
[1721163157925,2.8896,3460.7,3460.0,2.89017]
[1721163158450,2.88975,3460.5,3459.8,2.4038]
[1721163158602,2.88984,3460.4,3459.6,2.8905]
[1721163158803,6.83352238,3461.0,3459.6,3.42535]
[1721163158804,2.88993,3460.3,3459.6,3.42535]
[1721163159114,2.88993,3460.3,3459.7,2.89041]
[1721163159321,5.35791,3460.6,3459.7,2.89041]
[1721163159527,2.88976,3460.5,3459.7,2.89041]
[1721163159703,2.88984,3460.4,3459.7,2.89041]
[1721163159904,2.88953,3460.8,3460.0,2.89014]
[1721163160438,3.78668238,3460.8,3460.1,2.89008]
[1721163160735,3.78662238,3460.9,3460.2,2.3139]
[1721163160933,3.0,3460.8,3460.0,2.89017]
[1721163161140,2.88963,3460.7,3459.8,5.629596]
[1721163161316,2.88963,3460.7,3459.9,2.89022]
[1721163161519,3.78672238,3460.8,3459.9,2.89022]
[1721163161520,2.88968,3460.6,3459.9,2.89022]
[1721163161845,2.88968,3460.6,3459.9,4.0846846]
[1721163162141,2.88968,3460.6,3460.0,2.89015]
[1721163162853,3.78672238,3460.8,3460.1,2.89007]
[1721163163062,0.89715238,3460.8,3459.9,1.1945046]
[1721163163203,2.88967,3460.6,3460.1,0.30155039]
[1721163163709,0.89715238,3460.7,3460.1,0.30155039]
[1721163163921,3.78674238,3460.7,3460.1,0.30155039]
[1721163164154,6.67640238,3460.7,3460.1,0.30155039]
[1721163166552,3.78675238,3460.7,3460.1,0.30155039]
[1721163166730,3.78675238,3460.7,3460.1,3.19163039]
[1721163167331,0.89715238,3460.6,3460.1,0.30155039]
[1721163167630,3.78682238,3460.6,3460.1,0.30155039]
[1721163169144,0.89715238,3460.5,3460.1,0.30155039]
[1721163170356,0.89715238,3460.5,3460.1,1.40103043]
[1721163171233,0.89715238,3460.5,3460.1,4.29111043]
[1721163173348,0.89715238,3460.6,3460.2,2.88997]
[1721163173860,4.19678139,3460.8,3460.2,2.88997]
[1721163173861,0.89715238,3460.7,3460.2,2.88997]
[1721163174861,0.89715238,3460.6,3460.2,2.88997]
[1721163175035,0.89715238,3460.6,3460.2,3.85355804]
[1721163176264,0.89715238,3460.6,3460.3,2.8899]
[1721163177128,0.89715238,3460.5,3460.3,2.8899]
[1721163178268,0.89715238,3460.4,3460.3,2.8899]
[1721163179368,1.19678139,3460.5,3460.3,2.8899]
[1721163180439,1.19678139,3460.4,3460.3,2.8899]
[1721163181570,1.19678139,3460.4,3460.1,2.89002]
[1721163181743,0.9004416,3460.2,3460.1,2.89002]
[1721163181942,0.9004416,3460.2,3460.1,3.959317]
[1721163183271,0.9004416,3460.2,3460.1,6.849397]
[1721163183477,0.9004416,3460.4,3460.3,2.88992]
[1721163183670,0.90066232,3460.4,3460.3,2.88992]
[1721163183872,1.19678139,3460.5,3460.3,2.88992]
[1721163184475,0.90077817,3460.4,3460.3,2.88992]
[1721163184785,1.19678139,3460.5,3460.3,2.88992]
[1721163184970,1.19678139,3460.4,3460.3,2.88992]
[1721163185303,1.80141518,3460.9,3460.5,2.3863]
[1721163185579,2.10165105,3461.2,3460.8,2.88944]
[1721163185580,0.90105635,3461.2,3460.8,2.88944]
[1721163185777,0.90105635,3461.0,3460.9,2.8894]
[1721163185952,1.20140846,3461.1,3460.7,5.2758]
[1721163186284,1.20140846,3461.1,3460.7,5.27582]
[1721163186285,0.90092007,3460.9,3460.7,5.27582]
[1721163186573,0.90092007,3460.9,3460.8,1.024]
[1721163186798,0.90092007,3460.9,3460.8,3.9135]
[1721163187083,0.90092007,3460.9,3460.8,1.024]
[1721163187445,1.20140846,3460.9,3460.6,3.91366]
[1721163187660,0.90079723,3460.7,3460.6,3.91366]